bitfinex-derivatives/quotes_BTCF0:USTF0_20241110
["timestamp","ask_amount","ask_price","bid_price","bid_amount"]
[1731260500630,0.23076,80306.0,80277.0,0.3608]
[1731260500834,0.53076,80306.0,80277.0,0.3608]
[1731260501027,0.062212,80294.0,80277.0,0.3608]
[1731260502834,0.3608,80300.0,80277.0,0.3608]
[1731260502835,0.423007,80300.0,80277.0,0.3608]
[1731260503140,0.3608,80300.0,80287.0,0.3608]
[1731260503632,0.22236,80299.0,80287.0,0.3608]
[1731260505239,0.22232,80298.0,80287.0,0.3608]
[1731260505536,0.0249377,80311.0,80297.0,0.3608]
[1731260505537,0.22232,80301.0,80297.0,0.3608]
[1731260506936,0.22232,80306.0,80297.0,0.3608]
[1731260508038,0.22232,80305.0,80297.0,0.3608]
[1731260508547,0.02678944,80320.0,80300.0,0.14301238]
[1731260508738,0.02678944,80320.0,80312.0,0.3608]
[1731260508739,0.22232,80319.0,80312.0,0.3608]
[1731260508927,0.22232,80319.0,80305.0,0.3608]
[1731260509335,0.062196,80314.0,80305.0,0.3608]
[1731260509827,0.00342381,80310.0,80305.0,0.3608]
[1731260510931,0.00342381,80308.0,80305.0,0.3608]
[1731260511331,0.21364,80307.0,80305.0,0.3608]
[1731260512034,0.00342381,80306.0,80305.0,0.3608]
[1731260514940,0.00342381,80306.0,80305.0,0.73436]
[1731260515140,0.00186857,80320.0,80314.0,0.14301238]
[1731260515339,0.00186857,80320.0,80319.0,0.3608]
[1731260515537,0.00186857,80320.0,80315.0,0.3608]
[1731260515736,0.00186857,80320.0,80306.0,0.14301238]
[1731260515931,0.2136,80319.0,80306.0,0.14301238]
[1731260516639,0.2136,80319.0,80315.0,0.14301238]
[1731260516944,0.00186857,80320.0,80315.0,0.14301238]
[1731260517140,0.00186857,80320.0,80319.0,0.3608]
[1731260517848,0.3608,80335.0,80319.0,0.73432]
[1731260518146,0.2136,80334.0,80325.0,0.14301238]
[1731260518530,0.2136,80334.0,80319.0,0.3608]
[1731260518945,0.3608,80333.0,80319.0,0.3608]
[1731260519143,0.062184,80330.0,80312.0,0.3608]
[1731260519348,0.3608,80323.0,80312.0,0.3608]
[1731260520635,0.422989,80323.0,80312.0,0.3608]
[1731260520836,0.3608,80323.0,80312.0,0.3608]
[1731260521031,0.062191,80321.0,80312.0,0.3608]
[1731260521935,0.062186,80328.0,80312.0,0.3608]
[1731260522137,0.3608,80323.0,80312.0,0.3608]
[1731260522643,0.21356,80322.0,80312.0,0.3608]
[1731260523041,0.3608,80333.0,80320.0,0.3608]
[1731260523339,0.38571892,80341.0,80320.0,0.3608]
[1731260523340,0.21356,80332.0,80320.0,0.3608]
[1731260523539,0.21356,80332.0,80312.0,0.3608]
[1731260523744,0.062183,80331.0,80312.0,0.3608]
[1731260524347,0.21356,80330.0,80312.0,0.3608]
[1731260524747,0.062183,80331.0,80312.0,0.3608]
[1731260524937,0.21356,80330.0,80321.0,0.3608]
[1731260525445,0.20552,80329.0,80321.0,0.3608]
[1731260525951,0.20552,80328.0,80321.0,0.3608]
[1731260527150,0.062186,80327.0,80321.0,0.3608]
[1731260527457,0.062188,80325.0,80321.0,0.3608]
[1731260529150,0.04464851,80327.0,80312.0,0.3608]
[1731260529151,0.3608,80323.0,80312.0,0.3608]
[1731260529348,0.04465104,80322.0,80312.0,0.3608]
[1731260529544,0.04465104,80322.0,80305.0,0.04981009]
[1731260529950,0.3608,80315.0,80305.0,0.04981009]
[1731260530150,0.04465104,80314.0,80309.0,0.14301238]
[1731260530445,0.04465104,80322.0,80309.0,0.14301238]
[1731260531153,0.7802,80323.0,80309.0,0.14301238]
[1731260531451,0.77956,80323.0,80309.0,0.14301238]
[1731260531648,0.20552,80322.0,80309.0,0.14301238]
[1731260532047,0.7802,80323.0,80315.0,0.3608]
[1731260532243,0.20552,80321.0,80315.0,0.3608]
[1731260532643,0.7802,80323.0,80315.0,0.3608]
[1731260532951,0.20552,80322.0,80315.0,0.3608]
[1731260533853,0.04465127,80321.0,80315.0,0.3608]
[1731260534358,0.3608,80316.0,80312.0,0.062197]
[1731260534546,0.3608,80316.0,80305.0,0.04981009]
[1731260534745,0.3608,80308.0,80305.0,0.04981009]
[1731260534950,0.00119711,80307.0,80305.0,0.04981009]
[1731260535152,0.00119711,80307.0,80306.0,0.3608]
[1731260535341,0.00119711,80307.0,80306.0,0.2751351]
[1731260537547,0.00119711,80307.0,80306.0,0.32494457]
[1731260540752,0.00119711,80307.0,80306.0,0.82869424]
[1731260540953,0.00119711,80307.0,80306.0,0.46789424]
[1731260541559,0.00119711,80307.0,80306.0,0.41997085]
[1731260542355,0.00239298,80307.0,80306.0,0.41997085]
[1731260542556,0.062194,80318.0,80306.0,0.41997085]
[1731260542760,0.062187,80326.0,80317.0,0.09502628]
[1731260542964,0.19644,80328.0,80322.0,0.3608]
[1731260543465,0.3608,80331.0,80322.0,0.20364245]
[1731260543649,0.258624,80329.0,80322.0,0.20364245]
[1731260543852,0.19644,80329.0,80322.0,0.20364245]
[1731260544054,0.062186,80327.0,80322.0,0.20364245]
[1731260544462,0.19644,80329.0,80322.0,0.20364245]
[1731260545864,0.3608,80353.0,80323.0,0.37348]
[1731260546053,0.41876,80371.0,80346.0,0.45582628]
[1731260546254,0.06081618,80376.0,80370.0,0.09502628]
[1731260546455,0.3608,80380.0,80370.0,0.09502628]
[1731260546866,0.3608,80380.0,80371.0,0.09629141]
[1731260547163,0.062142,80384.0,80379.0,0.09629141]
[1731260547363,0.3608,80380.0,80379.0,0.09629141]
[1731260548262,0.3608,80380.0,80360.0,0.00186666]
[1731260548263,0.062149,80376.0,80360.0,0.00186666]
[1731260548465,0.19644,80375.0,80360.0,0.00186666]
[1731260548659,0.062158,80363.0,80360.0,0.00186666]
[1731260550064,0.37332,80362.0,80327.0,0.3608]
[1731260550371,0.062176,80340.0,80320.0,0.14441215]
[1731260550667,0.3608,80335.0,80320.0,0.14441215]
[1731260550862,0.3608,80335.0,80328.0,0.14441215]
[1731260551055,0.42298,80335.0,80318.0,0.14441215]
[1731260551255,0.3608,80327.0,80318.0,0.14441215]
[1731260551459,0.0446443,80326.0,80318.0,0.14441215]
[1731260551955,0.1914,80326.0,80318.0,0.14441215]
[1731260552163,0.2360443,80326.0,80318.0,0.08162974]
[1731260552463,0.0446443,80325.0,80324.0,0.3608]
[1731260552867,0.3608,80346.0,80324.0,0.3608]
[1731260552868,0.0446443,80334.0,80326.0,0.062186]
[1731260553059,0.062169,80349.0,80333.0,0.3608]
[1731260553262,0.126,80360.0,80333.0,0.3608]
[1731260553263,0.0446443,80351.0,80347.0,0.14441215]
[1731260553471,0.05108184,80363.0,80342.0,0.3608]
[1731260553472,0.0446443,80363.0,80350.0,0.3608]
[1731260553663,0.0446443,80364.0,80351.0,0.062167]
[1731260553977,0.4054443,80364.0,80350.0,0.36176]
[1731260554273,0.062161,80359.0,80342.0,0.36176]
[1731260554471,0.3608,80358.0,80342.0,0.3608]
[1731260554764,0.04651198,80357.0,80342.0,0.3608]
[1731260555163,0.062166,80353.0,80342.0,0.3608]
[1731260555358,0.04651198,80357.0,80342.0,0.3608]
[1731260555865,0.19636,80356.0,80344.0,0.14441215]
[1731260556168,0.0446443,80355.0,80344.0,0.14441215]
[1731260556364,0.0446443,80355.0,80351.0,0.062167]
[1731260557668,0.0446443,80355.0,80349.0,0.3608]
[1731260559171,0.55716,80356.0,80349.0,0.3608]
[1731260559671,0.19636,80356.0,80344.0,0.3608]
[1731260559866,0.062165,80355.0,80344.0,0.3608]
[1731260560062,0.062165,80354.0,80344.0,0.3608]
[1731260562065,0.19636,80356.0,80344.0,0.3608]
[1731260562269,0.36334768,80357.0,80344.0,0.3608]
[1731260562468,0.1874,80356.0,80344.0,0.3608]
[1731260562667,0.00186768,80357.0,80344.0,0.3608]
[1731260562876,0.00186768,80357.0,80352.0,0.3608]
[1731260563075,0.00186768,80357.0,80350.0,0.062168]
[1731260563269,0.00186768,80357.0,80344.0,0.3608]
[1731260564173,0.00186768,80357.0,80347.0,0.06217]
[1731260564367,0.1874,80356.0,80348.0,0.062169]
[1731260564672,0.18926768,80357.0,80351.0,0.3608]
[1731260564865,0.18926768,80357.0,80351.0,0.422967]
[1731260565170,0.18926768,80357.0,80351.0,0.3608]
[1731260565871,0.18926768,80357.0,80344.0,0.27404454]
[1731260566070,0.18926768,80357.0,80348.0,0.062169]
[1731260566386,0.04462872,80356.0,80352.0,0.062166]
[1731260566678,0.00186768,80357.0,80352.0,0.062166]
[1731260566868,0.00186768,80357.0,80351.0,0.3608]
[1731260567273,0.00186768,80357.0,80349.0,0.14441215]
[1731260567769,0.00186768,80357.0,80351.0,0.3608]
[1731260567975,0.00186768,80357.0,80351.0,0.422967]
[1731260568166,0.00186768,80357.0,80352.0,0.062166]
[1731260568367,0.0446268,80362.0,80351.0,0.3608]
[1731260568573,0.044619,80371.0,80361.0,0.50521215]
[1731260568872,4.98e-05,80380.0,80379.0,0.062146]
[1731260569075,4.98e-05,80380.0,80379.0,0.3608]
[1731260571073,0.10678173,80394.0,80393.0,0.062135]
[1731260571074,0.06216273,80394.0,80393.0,0.062135]
[1731260571266,0.04460616,80406.0,80385.0,0.14441215]
[1731260571467,0.04460616,80406.0,80389.0,0.3608]
[1731260571468,0.062129,80401.0,80389.0,0.3608]
[1731260571668,0.14441215,80405.0,80389.0,0.3608]
[1731260571870,0.04460616,80406.0,80389.0,0.3608]
[1731260571871,0.062131,80398.0,80389.0,0.3608]
[1731260572173,0.1798,80397.0,80386.0,0.06214]
[1731260572379,0.062126,80405.0,80387.0,0.062139]
[1731260572681,0.1798,80404.0,80387.0,0.062139]
[1731260572972,0.22440582,80403.0,80387.0,0.062139]
[1731260573174,0.241927,80403.0,80386.0,0.3608]
[1731260573375,0.06213,80400.0,80383.0,0.14441215]
[1731260573574,0.42293,80400.0,80391.0,0.3608]
[1731260573778,0.062132,80397.0,80379.0,0.3608]
[1731260574080,0.3608,80400.0,80379.0,0.3608]
[1731260574278,0.3608,80400.0,80386.0,0.3608]
[1731260576576,0.17976,80399.0,80386.0,0.3608]
[1731260576980,0.422936,80392.0,80379.0,0.3608]
[1731260577281,0.062137,80390.0,80379.0,0.3608]
[1731260577481,0.17976,80389.0,80379.0,0.3608]
[1731260577877,0.3608,80382.0,80371.0,0.3608]
[1731260578073,0.3608,80382.0,80367.0,0.02489037]
[1731260578283,0.3608,80375.0,80367.0,0.02489037]
[1731260578474,0.062146,80379.0,80367.0,0.14441215]
[1731260578772,0.3608,80373.0,80362.0,0.0636382]
[1731260578979,0.41844,80393.0,80362.0,0.00186651]
[1731260578980,0.54056,80372.0,80362.0,0.00186651]
[1731260579179,0.17976,80371.0,80362.0,0.00186651]
[1731260580368,0.062155,80367.0,80362.0,0.00186651]
[1731260580771,0.3608,80363.0,80362.0,0.00186651]
[1731260583677,0.3608,80363.0,80361.0,0.14441215]
[1731260583886,0.17156,80362.0,80361.0,0.14441215]
[1731260584473,0.3608,80372.0,80366.0,0.062155]
[1731260584672,0.3608,80372.0,80361.0,0.14441215]
[1731260584673,0.17156,80371.0,80361.0,0.14441215]
[1731260584869,0.17156,80371.0,80359.0,0.062161]
[1731260585079,0.17156,80371.0,80359.0,0.20657315]
[1731260585271,0.17156,80371.0,80350.0,0.3608]
[1731260585272,0.233712,80371.0,80352.0,0.062166]
[1731260585471,0.233712,80371.0,80354.0,0.062165]
[1731260585674,0.062154,80369.0,80354.0,0.062165]
[1731260585873,0.17156,80371.0,80351.0,0.14441215]
[1731260585874,0.3608,80363.0,80351.0,0.14441215]
[1731260586082,0.062154,80369.0,80351.0,0.14441215]
[1731260586281,0.062154,80369.0,80350.0,0.422968]
[1731260586282,0.00170386,80362.0,80359.0,0.14441215]
[1731260586482,0.00170386,80362.0,80350.0,0.3608]
[1731260586676,0.32541215,80361.0,80341.0,0.00096]
[1731260586978,0.181,80361.0,80340.0,0.3608]
[1731260587181,0.181,80361.0,80337.0,0.02489894]
[1731260587377,0.00170386,80358.0,80342.0,0.14441215]
[1731260587774,0.00170386,80358.0,80357.0,0.14441215]
[1731260588084,0.3608,80372.0,80364.0,0.062157]
[1731260588278,0.3608,80372.0,80371.0,0.14441215]
[1731260588582,0.181,80375.0,80371.0,0.14441215]
[1731260588782,0.3608,80388.0,80371.0,0.14441215]
[1731260588783,5.577e-05,80374.0,80371.0,0.14441215]
[1731260590069,5.577e-05,80374.0,80366.0,0.3608]
[1731260590472,5.577e-05,80374.0,80373.0,0.14441215]
[1731260590679,5.577e-05,80374.0,80373.0,0.10372687]
[1731260591682,5.577e-05,80374.0,80373.0,0.46452687]
[1731260594088,0.3608,80388.0,80373.0,0.46452687]
[1731260594280,0.181,80385.0,80380.0,0.3608]
[1731260594480,0.181,80385.0,80373.0,0.46452687]
[1731260594481,0.04461192,80384.0,80373.0,0.46548687]
[1731260594780,0.22561192,80384.0,80373.0,0.46452687]
[1731260594984,0.04461192,80383.0,80373.0,0.46452687]
[1731260595583,0.10675492,80383.0,80373.0,0.46452687]
[1731260595783,0.062143,80383.0,80373.0,0.46452687]
[1731260595980,0.181,80384.0,80373.0,0.46452687]
[1731260596378,0.181,80384.0,80373.0,0.37894488]
[1731260596795,0.062162,80358.0,80355.0,5.893e-05]
[1731260596984,0.3608,80356.0,80355.0,5.893e-05]
[1731260597675,0.181,80357.0,80355.0,0.36085893]
[1731260599281,0.3608,80364.0,80355.0,0.36085893]
[1731260599490,0.181,80363.0,80362.0,0.14441215]
[1731260600781,0.243158,80363.0,80355.0,0.36085893]
[1731260600981,0.243158,80363.0,80355.0,5.893e-05]
[1731260601591,0.181,80363.0,80355.0,5.893e-05]
[1731260601787,0.062148,80376.0,80362.0,0.14441215]
[1731260601996,0.181,80375.0,80362.0,0.14441215]
[1731260602384,0.062153,80370.0,80362.0,0.14441215]
[1731260602694,0.3608,80374.0,80355.0,5.893e-05]
[1731260602900,0.062158,80363.0,80355.0,5.893e-05]
[1731260603087,0.062163,80356.0,80355.0,5.893e-05]
[1731260607293,0.735581,80356.0,80355.0,9.3e-07]
[1731260607484,0.062181,80334.0,80325.0,0.14441215]
[1731260607690,0.3608,80332.0,80325.0,0.14441215]
[1731260607993,0.422983,80332.0,80325.0,0.14441215]
[1731260608398,0.422983,80332.0,80323.0,0.14433325]
[1731260608697,0.18104,80333.0,80323.0,0.14433325]
[1731260609099,0.062185,80329.0,80323.0,0.14433325]
[1731260609398,5.893e-05,80328.0,80323.0,0.00186754]
[1731260609597,0.062188,80325.0,80323.0,0.00186754]
[1731260609788,5.893e-05,80328.0,80323.0,0.00186754]
[1731260610396,0.062188,80325.0,80322.0,0.3608]
[1731260610610,0.3608,80323.0,80307.0,0.4928]
[1731260610792,0.062192,80320.0,80307.0,0.4928]
[1731260610991,0.3608,80323.0,80307.0,0.3608]
[1731260611298,0.3608,80323.0,80306.0,0.04980947]
[1731260611497,0.062192,80320.0,80306.0,0.04980947]
[1731260611793,0.062193,80318.0,80306.0,0.04980947]
[1731260612391,0.3608,80323.0,80306.0,0.04980947]
[1731260612595,0.3608,80314.0,80306.0,0.04980947]
[1731260612790,0.18108,80313.0,80306.0,0.04980947]
[1731260613205,0.062198,80312.0,80306.0,0.04980947]
[1731260614501,0.3608,80314.0,80306.0,0.04980947]
[1731260614706,0.18108,80313.0,80306.0,0.04980947]
[1731260615193,0.243277,80313.0,80306.0,0.04980947]
[1731260615398,0.17348,80312.0,80306.0,0.04980947]
[1731260616288,0.17348,80311.0,80306.0,0.04980947]
[1731260617805,0.062201,80308.0,80306.0,0.04980947]
[1731260618205,0.17348,80311.0,80306.0,0.04980947]
[1731260619204,0.062201,80308.0,80306.0,0.04980947]
[1731260621492,0.37356,80307.0,80306.0,0.04980947]
[1731260622102,0.062201,80308.0,80306.0,0.04980947]
[1731260622704,0.17352,80307.0,80306.0,0.04980947]
[1731260623605,5.893e-05,80310.0,80306.0,0.04980947]
[1731260624103,5.893e-05,80310.0,80308.0,0.09533789]
[1731260624298,0.17352,80309.0,80308.0,0.09533789]
[1731260624696,0.44436002,80320.0,80308.0,0.09533789]
[1731260624697,0.00064,80320.0,80308.0,0.09533789]
[1731260624903,0.17352,80319.0,80315.0,0.3608]
[1731260625104,0.17352,80325.0,80318.0,0.1429234]
[1731260625304,0.17352,80325.0,80322.0,0.06219]
[1731260626513,0.17352,80325.0,80322.0,0.42299]
[1731260626805,0.17352,80324.0,80322.0,0.42299]
[1731260627001,0.17352,80324.0,80322.0,0.3608]
[1731260629807,0.17352,80324.0,80322.0,0.422989]
[1731260630004,0.3608,80337.0,80322.0,0.73428]
[1731260630205,0.17352,80337.0,80333.0,0.062181]
[1731260630408,0.17352,80337.0,80336.0,0.3608]
[1731260630910,0.00186777,80342.0,80336.0,0.3608]
[1731260631308,0.3608,80357.0,80346.0,0.062171]
[1731260631613,0.3608,80357.0,80349.0,0.062169]
[1731260631908,0.17352,80356.0,80344.0,0.062172]
[1731260632415,0.17352,80356.0,80349.0,0.3608]
[1731260637111,0.17352,80356.0,80342.0,0.3608]
[1731260637112,0.53432,80356.0,80342.0,0.3608]
[1731260638212,0.53432,80356.0,80344.0,0.1429234]
[1731260638512,0.53432,80356.0,80342.0,0.422974]
[1731260638713,0.53432,80356.0,80349.0,0.3608]
[1731260639611,0.3608,80356.0,80349.0,0.3608]
[1731260639914,0.16584,80355.0,80342.0,0.3608]
[1731260640514,0.062165,80354.0,80342.0,0.3608]
[1731260640715,0.062167,80352.0,80342.0,0.3608]
[1731260642116,0.16584,80355.0,80342.0,0.3608]
[1731260642324,0.062169,80349.0,80342.0,0.3608]
[1731260642711,0.16584,80355.0,80344.0,0.1429234]
[1731260643328,0.062165,80354.0,80342.0,0.3608]
[1731260643515,0.062166,80353.0,80342.0,0.3608]
[1731260644520,0.062168,80351.0,80342.0,0.3608]
[1731260644916,0.16584,80355.0,80342.0,0.3608]
[1731260644917,0.062169,80349.0,80342.0,0.3608]
[1731260646432,0.16584,80355.0,80342.0,0.3608]
[1731260647322,0.16584,80355.0,80345.0,0.09523257]
[1731260648227,0.04463285,80354.0,80345.0,0.09523257]
[1731260648427,0.16584,80355.0,80342.0,0.3608]
[1731260649824,0.062168,80350.0,80342.0,0.3608]
[1731260650228,0.16584,80355.0,80342.0,0.3608]
[1731260650532,0.228004,80355.0,80342.0,0.3608]
[1731260651619,0.02490273,80363.0,80342.0,0.3608]
[1731260651823,0.062168,80351.0,80342.0,0.3608]
[1731260652628,0.422964,80356.0,80342.0,0.3608]
[1731260652827,0.062164,80355.0,80342.0,0.3608]
[1731260653625,0.3608,80356.0,80353.0,0.09523257]
[1731260653926,0.3608,80356.0,80342.0,0.3608]
[1731260653927,0.00068,80367.0,80352.0,0.3608]
[1731260654127,0.06215,80374.0,80365.0,0.3608]
[1731260654724,0.062151,80372.0,80353.0,0.186466]
[1731260655029,0.36266758,80376.0,80356.0,0.09523257]
[1731260655230,0.36266758,80376.0,80363.0,0.09523257]
[1731260655534,0.00186758,80376.0,80371.0,0.15738357]
[1731260656030,0.36148,80398.0,80375.0,0.09523257]
[1731260656234,0.15808,80397.0,80389.0,0.09523257]
[1731260656825,0.15808,80397.0,80383.0,0.3608]
[1731260657131,0.15808,80397.0,80374.0,0.3608]
[1731260657132,0.062141,80385.0,80374.0,0.3608]
[1731260657335,0.062143,80383.0,80374.0,0.3608]
[1731260657535,0.3608,80375.0,80363.0,0.06349415]
[1731260657834,0.422949,80375.0,80363.0,0.06349415]
[1731260658023,0.3608,80375.0,80363.0,0.06349415]
[1731260658228,0.062151,80373.0,80363.0,0.06349415]
[1731260658432,0.062151,80373.0,80361.0,0.00186667]
[1731260658829,0.04462166,80374.0,80361.0,0.00186667]
[1731260659028,0.09523257,80368.0,80361.0,0.00186667]
[1731260659235,0.062159,80362.0,80352.0,0.3608]
[1731260659532,0.3608,80361.0,80352.0,0.3608]
[1731260659738,0.15808,80360.0,80352.0,0.3608]
[1731260661231,0.220241,80360.0,80352.0,0.3608]
[1731260662233,0.15808,80360.0,80352.0,0.3608]
[1731260662440,0.3608,80390.0,80359.0,0.51819357]
[1731260662634,0.15808,80369.0,80360.0,0.09523257]
[1731260662935,0.3608,80383.0,80368.0,0.09523257]
[1731260663140,0.15808,80377.0,80373.0,0.3608]
[1731260663527,0.15808,80377.0,80369.0,0.1295]
[1731260664035,0.15808,80377.0,80363.0,0.3608]
[1731260664430,0.04461917,80376.0,80363.0,0.3608]
[1731260664827,0.3608,80375.0,80363.0,0.3608]
[1731260665040,0.04461917,80374.0,80363.0,0.3608]
[1731260666040,0.04461917,80374.0,80343.0,0.1357]
[1731260666041,0.062154,80368.0,80352.0,0.3608]
[1731260666231,0.10676917,80374.0,80363.0,0.04977414]
[1731260666537,0.062157,80365.0,80363.0,0.04977414]
[1731260666743,0.422957,80365.0,80363.0,0.04977414]
[1731260667040,0.04461917,80364.0,80363.0,0.04977414]
[1731260669437,0.41793917,80364.0,80363.0,0.04977414]
[1731260669637,0.41793917,80364.0,80328.0,0.02488952]
[1731260669638,0.40541917,80364.0,80349.0,0.3608]
[1731260669939,0.04461917,80363.0,80349.0,0.3608]
[1731260670141,0.15804,80362.0,80349.0,0.3608]
[1731260670345,0.04461917,80361.0,80349.0,0.3608]
[1731260671546,0.15804,80362.0,80349.0,0.3608]
[1731260671743,0.15804,80362.0,80357.0,0.3608]
[1731260672448,0.36144,80374.0,80360.0,0.09523257]
[1731260672743,0.20270519,80373.0,80360.0,0.15739257]
[1731260672933,0.15808,80372.0,80365.0,0.3608]
[1731260673342,0.41852,80376.0,80366.0,0.062156]
[1731260673549,0.04462027,80375.0,80366.0,0.062156]
[1731260673747,0.3608,80379.0,80369.0,0.062153]
[1731260673937,0.3608,80379.0,80358.0,0.00012415]
[1731260673938,0.09523257,80375.0,80358.0,0.00012415]
[1731260674141,0.3608,80370.0,80359.0,0.062161]
[1731260674339,0.3608,80370.0,80358.0,0.00012415]
[1731260675257,0.15808,80369.0,80358.0,0.00012415]
[1731260676139,0.220234,80369.0,80358.0,0.00012415]
[1731260676841,0.062155,80367.0,80358.0,0.04990139]
[1731260677140,0.15808,80369.0,80358.0,0.04990139]
[1731260677348,0.220233,80369.0,80358.0,0.04990139]
[1731260678052,0.3608,80370.0,80358.0,0.04990139]
[1731260678245,0.15804,80368.0,80359.0,0.09523257]
[1731260678445,0.04462383,80367.0,80359.0,0.09523257]
[1731260678647,0.04462383,80367.0,80358.0,0.11206339]
[1731260678852,0.09523257,80359.0,80358.0,0.04990139]
[1731260679054,0.04462383,80363.0,80358.0,0.04990139]
[1731260679248,0.422959,80362.0,80358.0,0.04990139]
[1731260679442,0.04462383,80361.0,80358.0,0.04990139]
[1731260680754,0.17112383,80367.0,80358.0,0.04990139]
[1731260681054,0.04462383,80367.0,80358.0,0.09967863]
[1731260681245,0.15364,80366.0,80358.0,0.09967863]
[1731260681455,0.04462383,80365.0,80358.0,0.09967863]
[1731260682445,0.04462383,80365.0,80358.0,0.01407284]
[1731260682645,0.04462383,80365.0,80350.0,0.09523257]
[1731260683456,9.126e-05,80364.0,80350.0,0.09523257]
[1731260683753,0.15364,80363.0,80355.0,0.3608]
[1731260683951,0.04462383,80362.0,80355.0,0.3608]
[1731260684656,0.46758283,80362.0,80346.0,0.3608]
[1731260684857,0.04462383,80361.0,80346.0,0.3608]
[1731260685359,0.10678383,80361.0,80346.0,0.3608]
[1731260685852,0.06216,80361.0,80346.0,0.3608]
[1731260686056,0.3608,80358.0,80352.0,0.09523257]
[1731260686250,0.04462383,80357.0,80352.0,0.09523257]
[1731260686647,0.062162,80358.0,80352.0,0.09523257]
[1731260686856,0.062162,80358.0,80346.0,0.3608]
[1731260687454,0.062164,80356.0,80346.0,0.3608]
[1731260689161,0.422966,80354.0,80346.0,0.30395508]
[1731260689367,0.062168,80351.0,80342.0,0.41058715]
[1731260689566,0.062173,80344.0,80342.0,0.04978715]
[1731260689752,0.15364,80343.0,80342.0,0.04978715]
[1731260690054,0.19827144,80343.0,80342.0,0.04978715]
[1731260690661,0.19827144,80343.0,80342.0,0.14501972]
[1731260691259,0.19827144,80343.0,80342.0,0.04978715]
[1731260692062,0.26044544,80343.0,80342.0,0.04978715]
[1731260694060,0.06218,80336.0,80328.0,0.00015726]
[1731260694367,0.3608,80331.0,80328.0,0.00015726]
[1731260694664,0.04463144,80330.0,80328.0,0.00015726]
[1731260694860,0.15368,80329.0,80328.0,0.00015726]
[1731260695062,0.19831144,80329.0,80325.0,0.00179754]
[1731260695265,0.04463144,80328.0,80325.0,0.00179754]
[1731260695472,0.15368,80328.0,80325.0,0.00179754]
[1731260695659,0.04463144,80327.0,80325.0,0.00179754]
[1731260697967,0.15368,80326.0,80325.0,0.00179754]
[1731260698163,0.19831144,80326.0,80325.0,0.00179754]
[1731260698863,0.19843723,80326.0,80325.0,0.00179754]
[1731260699468,0.19843723,80326.0,80325.0,0.00161779]
[1731260701579,0.062198,80311.0,80310.0,0.06280438]
[1731260701881,0.062198,80311.0,80306.0,0.04980947]
[1731260701882,0.062201,80307.0,80306.0,0.04980947]
[1731260702087,0.215881,80307.0,80306.0,0.04980947]
[1731260702280,0.63410107,80307.0,80306.0,0.04980947]
[1731260702479,0.589441,80307.0,80306.0,0.04980947]
[1731260702884,0.63410198,80307.0,80306.0,0.04980947]
[1731260703087,0.72933455,80307.0,80306.0,0.04980947]
[1731260703284,0.68467357,80307.0,80306.0,0.04980947]
[1731260703679,0.78399375,80311.0,80306.0,0.04980947]
[1731260703879,0.15368,80310.0,80308.0,0.3608]
[1731260704489,0.00013481,80311.0,80306.0,0.14504204]
[1731260704689,0.15368,80310.0,80306.0,0.14504204]
[1731260704992,0.00013481,80311.0,80306.0,0.14504204]
[1731260705182,0.15372,80310.0,80306.0,0.14504204]
[1731260705579,0.00013481,80311.0,80306.0,0.14504204]
[1731260705787,0.15372,80312.0,80308.0,0.0622]
[1731260705985,0.15372,80312.0,80311.0,0.45603257]
[1731260706991,0.1538378,80312.0,80311.0,0.45603257]
[1731260707193,0.60987037,80312.0,80306.0,0.04980947]
[1731260707388,0.062201,80307.0,80306.0,0.04980947]
[1731260708586,0.435761,80307.0,80306.0,0.04980947]
[1731260708897,0.062207,80300.0,80291.0,0.00010075]
[1731260709485,0.0623546,80299.0,80291.0,0.00010075]
[1731260710088,0.60033257,80298.0,80271.0,0.3608]
[1731260710290,0.423018,80286.0,80262.0,0.09523257]
[1731260710591,0.15372,80285.0,80262.0,0.09523257]
[1731260710798,0.15372,80285.0,80261.0,0.062237]
[1731260711186,0.000102,80284.0,80261.0,0.062237]
[1731260711583,0.062222,80281.0,80260.0,0.36176]
[1731260711896,0.3608,80278.0,80260.0,0.3608]
[1731260713197,0.3608,80278.0,80268.0,0.3608]
[1731260713496,0.3608,80278.0,80258.0,0.1358]
[1731260713497,0.062229,80272.0,80257.0,0.2544]
[1731260713695,0.14916,80271.0,80257.0,0.2544]
[1731260714490,0.14916,80271.0,80260.0,0.3608]
[1731260714687,0.14916,80270.0,80261.0,0.062237]
[1731260715490,0.14916,80270.0,80260.0,0.3608]
[1731260715886,0.00011733,80277.0,80260.0,0.3608]
[1731260716290,0.14916,80276.0,80260.0,0.3608]
[1731260716488,0.062227,80275.0,80260.0,0.3608]
[1731260716997,0.14309416,80273.0,80260.0,0.3608]
[1731260717192,0.3608,80271.0,80260.0,0.3608]
[1731260717397,0.1492,80270.0,80260.0,0.3608]
[1731260717599,0.1492,80269.0,80260.0,0.3608]
[1731260718386,0.062232,80268.0,80260.0,0.3608]
[1731260719999,0.062233,80266.0,80260.0,0.3608]
[1731260720701,9.965e-05,80267.0,80260.0,0.3608]
[1731260721090,0.06233265,80267.0,80260.0,0.3608]
[1731260721300,0.20542681,80267.0,80260.0,0.3608]
[1731260721601,0.3608,80261.0,80244.0,0.3608]
[1731260721794,0.14309416,80256.0,80244.0,0.3608]
[1731260721992,0.1492,80255.0,80244.0,0.3608]
[1731260723194,0.14309416,80246.0,80240.0,9.114e-05]
[1731260723389,0.3608,80250.0,80240.0,9.114e-05]
[1731260723902,0.062247,80249.0,80240.0,9.114e-05]
[1731260724094,0.3608,80250.0,80240.0,9.114e-05]
[1731260724291,0.14309416,80245.0,80240.0,9.114e-05]
[1731260724806,0.3608,80241.0,80214.0,0.0365989]
[1731260725109,0.44309416,80245.0,80211.0,0.3608]
[1731260725110,0.3608,80222.0,80211.0,0.3608]
[1731260725402,0.1492,80221.0,80211.0,0.3608]
[1731260725598,0.1492,80221.0,80210.0,0.14309416]
[1731260725905,0.1492,80221.0,80208.0,0.36267022]
[1731260725906,0.00012385,80220.0,80211.0,0.1257]
[1731260726097,0.1181424,80221.0,80208.0,0.00187022]
[1731260727195,0.00014996,80220.0,80208.0,0.00187022]